bitfinex/quotes_SOLUSD_20240825
["timestamp","ask_amount","ask_price","bid_price","bid_amount"]
[1724563077919,11.31477007,158.94,158.86,4.34643163]
[1724563080227,1.57323819,158.94,158.86,4.34643163]
[1724563085534,1.57323819,158.94,158.86,11.43644993]
[1724563085705,1.57323819,158.94,158.87,20.0]
[1724563086501,1.57323819,158.94,158.86,27.09001513]
[1724563086703,1.57323819,158.94,158.87,4.34636547]
[1724563087599,11.31477007,158.94,158.87,4.34636547]
[1724563089022,11.31477007,158.94,158.86,20.0]
[1724563089237,11.31477007,158.94,158.87,4.34636216]
[1724563090217,1.57323819,158.94,158.87,4.34636216]
[1724563090529,1.57323819,158.94,158.88,4.34636216]
[1724563090721,1.57323819,158.94,158.87,4.34636216]
[1724563090900,1.57323819,158.94,158.88,4.34636216]
[1724563091104,1.57323819,158.94,158.87,4.34636216]
[1724563091310,1.57323819,158.94,158.88,4.34636216]
[1724563091511,33.27616979,158.95,158.88,4.34636216]
[1724563091716,33.27616979,158.95,158.87,11.43621657]
[1724563092029,33.27616979,158.95,158.88,4.34636216]
[1724563093126,33.27616979,158.95,158.87,7.08985441]
[1724563093314,33.27616979,158.95,158.88,4.34628562]
[1724563093631,33.27616979,158.95,158.87,7.08985441]
[1724563093925,33.27616979,158.95,158.88,4.34628267]
[1724563094125,33.27616979,158.95,158.87,7.08985441]
[1724563094428,33.27616979,158.95,158.88,4.34623724]
[1724563094601,33.27616979,158.95,158.87,7.08985441]
[1724563094801,33.27616979,158.95,158.88,4.34623961]
[1724563095002,33.27616979,158.95,158.87,7.08985441]
[1724563095203,33.27616979,158.95,158.86,29.74153188]
[1724563095428,33.27616979,158.95,158.87,7.08985374]
[1724563095623,33.27616979,158.95,158.88,4.3463612]
[1724563095800,33.27616979,158.95,158.87,7.08985374]
[1724563096004,33.27616979,158.95,158.88,4.34634739]
[1724563096215,33.27616979,158.95,158.87,7.08985374]
[1724563098530,33.27616979,158.95,158.87,7.08916933]
[1724563098705,33.27616979,158.95,158.86,36.83070121]
[1724563098908,33.27616979,158.95,158.87,7.08916933]
[1724563101133,33.27616979,158.95,158.86,45.79078764]
[1724563101312,33.27616979,158.95,158.87,7.08916933]
[1724563101512,33.27616979,158.95,158.87,7.08641503]
[1724563103334,33.27616979,158.95,158.86,36.82794691]
[1724563103550,33.27616979,158.95,158.87,7.08641503]
[1724563104018,15.6701,158.95,158.88,37.55056508]
[1724563104223,15.6701,158.95,158.9,9.74153188]
[1724563104529,15.6701,158.95,158.91,0.72225224]
[1724563107823,15.6701,158.95,158.9,9.74153188]
[1724563112774,15.6701,158.95,158.9,16.82575635]
[1724563113124,15.6701,158.95,158.9,9.74153188]
[1724563114148,15.6701,158.95,158.9,11.82615013]
[1724563115859,15.6701,158.95,158.91,0.72185141]
[1724563116150,15.6701,158.95,158.91,20.72185141]
[1724563116558,15.6701,158.95,158.91,27.80588013]
[1724563117246,15.6701,158.95,158.91,20.72185141]
[1724563118332,15.6701,158.95,158.91,27.80588173]
[1724563118536,15.6701,158.95,158.91,20.0]
[1724563118728,15.6701,158.95,158.91,7.08403032]
[1724563119039,15.6701,158.95,158.9,4.74153188]
[1724563119555,15.6701,158.95,158.9,11.8255622]
[1724563119736,15.6701,158.95,158.91,20.0]
[1724563119934,15.6701,158.95,158.91,27.08403032]
[1724563120555,15.6701,158.95,158.91,20.0]
[1724563120865,15.6701,158.95,158.91,7.08456693]
[1724563121026,15.6701,158.95,158.9,4.74153188]
[1724563121543,15.6701,158.95,158.9,11.82609881]
[1724563121853,15.6701,158.95,158.91,20.0]
[1724563122170,15.6701,158.95,158.91,27.08456693]
[1724563123064,15.6701,158.95,158.92,1.57473825]
[1724563123363,15.6701,158.95,158.91,20.0]
[1724563123535,15.6701,158.95,158.9,4.74153188]
[1724563130270,17.24293745,158.95,158.87,6.57695039]
[1724563130566,9.74153188,158.94,158.85,9.74153188]
[1724563131146,17.24293745,158.95,158.85,9.74153188]
[1724563131469,17.24293745,158.95,158.87,9.74153188]
[1724563131652,17.24293745,158.95,158.88,20.0]
[1724563133946,15.6701,158.95,158.88,20.0]
[1724563134169,17.24314825,158.95,158.88,20.0]
[1724563141452,26.98468013,158.95,158.88,20.0]
[1724563141652,26.98468013,158.95,158.89,20.0]
[1724563141856,26.98468013,158.95,158.86,20.0]
[1724563143271,17.24314825,158.95,158.87,9.74153188]
[1724563143487,17.24314825,158.95,158.88,20.0]
[1724563144082,1.57304825,158.95,158.88,20.0]
[1724563144260,6.0564,159.05,158.94,9.74153188]
[1724563144458,6.0564,159.05,158.97,9.74153188]
[1724563144756,6.0564,159.05,158.99,9.74153188]
[1724563144956,6.0564,159.05,159.0,20.0]
[1724563150383,6.0564,159.05,158.99,9.74153188]
[1724563150574,6.0564,159.05,159.0,20.0]
[1724563154984,6.0564,159.05,159.01,0.72035114]
[1724563156886,6.0564,159.05,159.01,9.74153188]
[1724563158075,7.62830678,159.05,159.0,20.0]
[1724563158267,1.57203405,159.04,158.89,58.22393118]
[1724563158474,9.74153188,159.03,158.93,9.74153188]
[1724563158980,1.5724148,159.02,158.93,16.72760599]
[1724563159179,11.31404594,159.01,158.9,6.57322306]
[1724563159388,22.375,159.0,158.91,9.74153188]
[1724563159573,22.375,159.0,158.91,16.73361521]
[1724563159772,22.375,159.0,158.92,4.34106607]
[1724563159976,22.375,159.0,158.91,14.08259795]
[1724563160376,22.375,159.0,158.91,9.74153188]
[1724563160582,22.375,159.0,158.92,20.0]
[1724563161181,23.94770085,159.0,158.92,20.0]
[1724563161500,22.375,159.0,158.93,0.721354]
[1724563161797,22.375,159.0,158.93,10.46288588]
[1724563161979,22.375,159.0,158.94,20.0]
[1724563175227,1.57263548,158.99,158.94,20.0]
[1724563175506,32.11653188,159.0,158.91,6.57510015]
[1724563175507,11.3143465,158.98,158.91,6.57510015]
[1724563175703,11.3143465,158.98,158.89,9.74153188]
[1724563176084,11.3143465,158.98,158.89,16.73755801]
[1724563176411,11.3143465,158.98,158.89,9.74153188]
[1724563176712,6.5256,158.97,158.89,9.74153188]
[1724563177005,1.57310519,158.96,158.89,9.74153188]
[1724563178098,1.57310519,158.96,158.9,20.0]
[1724563178522,1.57309254,158.95,158.88,20.0]
[1724563179414,1.57309279,158.96,158.88,20.0]
[1724563179610,1.57309297,158.95,158.88,20.0]
[1724563180124,6.5256,158.97,158.89,0.72285028]
[1724563183234,6.5256,158.97,158.9,1.57484838]
[1724563183525,6.5256,158.97,158.91,1.57484838]
[1724563183737,6.5256,158.97,158.88,20.0]
[1724563184034,6.5256,158.97,158.89,2.29770016]
[1724563184205,6.5256,158.97,158.9,1.57484872]
[1724563184406,6.5256,158.97,158.91,1.57484872]
[1724563184634,6.5256,158.97,158.88,20.0]
[1724563184801,6.5256,158.97,158.89,2.29770022]
[1724563185003,6.5256,158.97,158.9,1.57484862]
[1724563185230,6.5256,158.97,158.91,1.57484862]
[1724563185418,6.5256,158.97,158.89,0.7228516]
[1724563185617,6.5256,158.97,158.9,1.57484818]
[1724563185821,1.57315297,158.96,158.91,1.57484818]
[1724563186006,6.5256,158.97,158.89,0.72285173]
[1724563186215,6.5256,158.97,158.9,1.57484833]
[1724563186527,1.57315301,158.96,158.91,1.57484833]
[1724563186834,1.57315301,158.96,158.88,20.0]
[1724563187133,6.5256,158.97,158.89,2.29769992]
[1724563187309,6.5256,158.97,158.9,1.57484887]
[1724563187507,6.5256,158.97,158.89,0.72285105]
[1724563188525,16.75184929,158.96,158.88,20.0]
[1724563188704,1.57315229,158.95,158.88,20.0]
[1724563188908,1.57315229,158.95,158.87,20.0]
[1724563195929,9.74153188,158.95,158.88,0.72314322]
[1724563198223,9.74153188,158.95,158.88,5.07023169]
[1724563198444,9.74153188,158.95,158.89,20.0]
[1724563198943,9.74153188,158.95,158.88,0.72314322]
[1724563199332,9.74153188,158.95,158.88,5.06994442]
[1724563199538,9.74153188,158.95,158.89,20.0]
[1724563200146,9.74153188,158.95,158.88,0.72314322]
[1724563200533,9.74153188,158.95,158.88,5.06994287]
[1724563200722,9.74153188,158.95,158.89,20.0]
[1724563201241,9.74153188,158.95,158.88,0.72314322]
[1724563201439,9.74153188,158.95,158.88,3.37862655]
[1724563201622,9.74153188,158.95,158.88,7.72454731]
[1724563201818,9.74153188,158.95,158.89,20.0]
[1724563202024,1.57329394,158.94,158.89,20.0]
[1724563202546,1.57329394,158.94,158.87,27.08900174]
[1724563202740,1.57329394,158.94,158.88,7.00132749]
[1724563202941,1.57329394,158.94,158.89,20.0]
[1724563203757,1.57329394,158.94,158.88,20.0]
[1724563203939,1.57329394,158.94,158.89,4.34589178]
[1724563204935,9.74153188,158.95,158.89,4.34589178]
[1724563205254,9.74153188,158.95,158.89,7.00143276]
[1724563206147,9.74153188,158.95,158.89,7.00121322]
[1724563209549,9.74153188,158.95,158.89,4.34581507]
[1724563209925,9.74153188,158.95,158.88,21.18007333]
[1724563210153,9.74153188,158.95,158.89,27.00153371]
[1724563210352,9.74153188,158.95,158.89,20.0]
[1724563210727,9.74153188,158.95,158.9,4.34588296]
[1724563210927,9.74153188,158.95,158.89,7.00132797]
[1724563211342,9.74153188,158.95,158.9,4.34588296]
[1724563211663,11.31473238,158.95,158.89,7.00132797]
[1724563212455,11.31473238,158.95,158.9,4.34588296]
[1724563213245,9.74153188,158.93,158.88,20.0]
[1724563213556,9.74153188,158.93,158.84,6.56236558]
[1724563213557,8.20588734,158.92,158.86,7.09298944]
[1724563213764,8.20588734,158.92,158.87,7.00561803]
[1724563213944,8.20588734,158.92,158.88,4.34845958]
[1724563214146,8.20588734,158.92,158.87,7.00561803]
[1724563214459,8.20588734,158.92,158.88,4.34845958]
[1724563214656,8.20588734,158.92,158.87,7.00561803]
[1724563214862,8.20588734,158.92,158.88,4.34845958]
[1724563215037,8.20588734,158.92,158.87,27.00561803]
[1724563215249,8.20588734,158.92,158.88,4.34845958]
[1724563215439,8.20588734,158.92,158.88,2.65733153]
[1724563216158,8.20588734,158.92,158.85,20.0]
[1724563216358,8.20588734,158.92,158.86,9.75104345]
[1724563216551,8.20588734,158.92,158.87,24.34873033]
[1724563216861,8.20588734,158.92,158.88,4.34873033]
[1724563217034,8.20588734,158.92,158.87,20.0]
[1724563217355,8.20588734,158.92,158.88,4.34853548]
[1724563217658,8.20588734,158.92,158.87,7.0933977]
[1724563217955,8.20588734,158.92,158.88,4.34859556]
[1724563218157,8.20588734,158.92,158.87,7.0933977]
[1724563218356,8.20588734,158.92,158.88,4.34832391]
[1724563218544,8.20588734,158.92,158.87,7.0933977]
[1724563218749,8.20588734,158.92,158.88,4.34863998]
[1724563218956,8.20588734,158.92,158.87,7.0933977]
[1724563219156,8.20588734,158.92,158.88,4.34863998]
[1724563219457,8.20588734,158.92,158.86,29.74153188]
[1724563219805,6.6325,158.92,158.87,11.44137099]
[1724563219960,6.6325,158.92,158.88,11.44182277]
[1724563220141,8.20588198,158.92,158.89,4.34849255]
[1724563220340,8.20588198,158.92,158.9,4.34863649]
[1724563220545,8.20588198,158.92,158.87,16.06209667]
[1724563220847,8.20588198,158.92,158.88,7.09333022]
[1724563221058,8.20588198,158.92,158.89,4.34864384]
[1724563221246,6.6325,158.92,158.9,4.34864384]
[1724563221445,6.6325,158.92,158.88,7.09371337]
[1724563221648,6.6325,158.92,158.89,4.34872669]
[1724563221861,6.6325,158.92,158.9,4.34872669]
[1724563222066,6.6325,158.92,158.86,29.74153188]
[1724563222349,6.6325,158.92,158.87,11.44380751]
[1724563222534,6.6325,158.92,158.88,7.09456066]
[1724563222742,6.6325,158.92,158.86,29.74153188]
[1724563223045,6.6325,158.92,158.87,7.09475394]
[1724563223262,6.6325,158.92,158.88,7.09475394]
[1724563223474,6.6325,158.92,158.86,29.74153188]
[1724563223678,6.6325,158.92,158.87,7.0946231]
[1724563223866,6.6325,158.92,158.88,7.0946231]
[1724563224184,6.6325,158.92,158.86,29.74153188]
[1724563224481,6.6325,158.92,158.87,7.09461868]
[1724563224646,1.57337927,158.91,158.88,7.09461868]
[1724563224848,1.57337927,158.91,158.86,20.0]
[1724563225079,1.57337927,158.91,158.87,7.09462754]
[1724563225281,1.57337927,158.91,158.86,20.0]
[1724563225582,8.20600822,158.92,158.87,7.09561274]
[1724563225763,8.20600822,158.92,158.88,7.09561282]
[1724563225962,6.6325,158.92,158.86,7.09561282]
[1724563226276,6.6325,158.92,158.87,27.81877034]
[1724563226477,6.6325,158.92,158.88,7.09561282]
[1724563226680,6.6325,158.92,158.87,20.72315752]
[1724563226863,6.6325,158.92,158.88,7.0939002]
[1724563227058,6.6325,158.92,158.87,0.72315752]
[1724563227266,6.6325,158.92,158.88,7.09388364]
[1724563227455,6.6325,158.92,158.87,0.72315752]
[1724563227782,6.6325,158.92,158.88,7.09395864]
[1724563227952,6.6325,158.92,158.87,0.72315752]
[1724563228147,6.6325,158.92,158.88,7.09402375]
[1724563228373,6.6325,158.92,158.87,0.72315752]
[1724563228577,6.6325,158.92,158.88,7.09400558]
[1724563228764,6.6325,158.92,158.87,0.72315752]
[1724563228962,6.6325,158.92,158.88,7.09401569]
[1724563229164,6.6325,158.92,158.87,0.72315752]
[1724563229876,6.6325,158.92,158.88,14.19120953]
[1724563230056,6.6325,158.92,158.88,7.09498015]
[1724563233081,6.6325,158.92,158.89,7.09775169]
[1724563233881,6.4212357,158.92,158.89,7.09775169]
[1724563234177,6.4212357,158.92,158.88,7.09498015]
[1724563234561,6.4212357,158.92,158.89,7.09775335]
[1724563234980,6.4212357,158.92,158.88,7.09498015]
[1724563235160,6.4212357,158.92,158.89,7.09775648]
[1724563235657,1.57339633,158.91,158.89,7.09775648]
[1724563235879,1.57339633,158.91,158.88,7.09498015]
[1724563236059,17.11289633,158.91,158.88,7.09498015]
[1724563236258,15.5395,158.88,158.73,16.877406]
[1724563236458,9.74153188,158.84,158.74,9.74153188]
[1724563237058,1.57425974,158.83,158.75,14.91029991]
[1724563237262,1.57425974,158.83,158.74,9.74153188]
[1724563237669,1.57425974,158.83,158.75,20.0]
[1724563239892,26.85537366,158.82,158.73,26.61893788]
[1724563240257,26.85537366,158.82,158.73,10.55933788]
[1724563241265,26.85537366,158.82,158.74,20.0]
[1724563241689,26.85537366,158.82,158.73,10.55933788]
[1724563241890,26.85537366,158.82,158.73,0.817806]
[1724563242984,26.85537366,158.82,158.73,10.55933788]
[1724563243192,26.85537366,158.82,158.74,20.0]
[1724563245590,25.28103188,158.82,158.74,20.0]
[1724563245790,25.28103188,158.82,158.74,20.72628101]
[1724563247299,9.74153188,158.8,158.73,0.817806]
[1724563247471,6.4162,158.78,158.73,0.817806]
[1724563247671,1.57478025,158.77,158.73,0.817806]
[1724563249692,6.4162,158.78,158.73,0.817806]
[1724563253103,6.4162,158.78,158.73,10.55933788]
[1724563255708,6.4162,158.78,158.74,20.0]
[1724563270836,21.5785,158.82,158.75,9.74153188]
[1724563271002,21.5785,158.82,158.76,20.0]
[1724563273428,21.5785,158.82,158.76,20.46981571]
[1724563273811,21.5785,158.82,158.77,9.74153188]
[1724563274021,21.5785,158.82,158.77,10.21131799]
[1724563275799,21.5785,158.82,158.77,9.74153188]
[1724563276214,21.5785,158.82,158.77,11.31768132]
[1724563278433,21.5785,158.82,158.78,1.57614944]
[1724563278611,1.57438321,158.81,158.78,1.57614944]
[1724563278812,21.5785,158.82,158.78,1.57614944]
[1724563279228,21.5785,158.82,158.79,1.57614944]
[1724563279434,21.5785,158.82,158.77,9.74153188]
[1724563279736,21.5785,158.82,158.78,1.57614914]
[1724563279939,21.5785,158.82,158.79,1.57614914]
[1724563280139,21.5785,158.82,158.77,9.74153188]
[1724563280326,21.5785,158.82,158.78,1.57614914]
[1724563280638,21.5785,158.82,158.79,1.57614914]
[1724563280839,21.5785,158.82,158.8,1.57614914]
[1724563281043,21.5785,158.82,158.77,9.74153188]
[1724563281223,21.5785,158.82,158.78,4.24667282]
[1724563281424,21.5785,158.82,158.79,1.57614944]
[1724563281638,21.5785,158.82,158.8,1.57614944]
[1724563281843,21.5785,158.82,158.81,1.57614944]
[1724563285017,1.57441685,158.84,158.81,1.57614944]
[1724563285222,22.529,158.86,158.82,1.5761353]
[1724563285453,6.1386,158.86,158.83,11.31766718]
[1724563285635,6.1386,158.86,158.84,1.57593691]
[1724563285817,6.1386,158.86,158.83,9.74153188]
[1724563286150,6.1386,158.86,158.84,1.57592718]
[1724563286356,6.1386,158.86,158.83,9.74153188]
[1724563286357,6.1386,158.86,158.85,1.57592718]
[1724563286647,15.6462,158.9,158.83,9.74153188]
[1724563286822,15.6462,158.9,158.84,1.57574707]
[1724563287149,15.6462,158.9,158.85,11.31719961]
[1724563287327,15.6462,158.9,158.86,1.57566773]
[1724563287646,15.6462,158.9,158.87,1.57566773]
[1724563287824,15.6462,158.9,158.88,1.57566773]
[1724563288024,15.6462,158.9,158.85,9.74153188]
[1724563288237,15.6462,158.9,158.86,1.57534083]
[1724563288420,15.6462,158.9,158.87,1.57534083]
[1724563288739,15.6462,158.9,158.88,1.57534083]
[1724563288932,15.6462,158.9,158.85,9.74153188]
[1724563289137,15.6462,158.9,158.86,1.57534841]
[1724563289342,15.6462,158.9,158.87,1.57534841]
[1724563289641,15.6462,158.9,158.85,9.74153188]
[1724563290033,15.6462,158.9,158.86,1.57534516]
[1724563290234,1.57357535,158.89,158.87,1.57534516]
[1724563290542,1.57357535,158.89,158.86,1.5753545]
[1724563290744,1.5737341,158.89,158.84,20.0]
[1724563290946,1.5737341,158.89,158.85,1.57535552]
[1724563291167,15.6462,158.9,158.86,1.57535552]
[1724563291465,17.21993294,158.9,158.85,1.57534558]
[1724563291645,15.6462,158.9,158.84,20.0]
[1724563291845,15.6462,158.9,158.85,1.57536395]
[1724563292046,15.6462,158.9,158.86,1.57536395]
[1724563292272,15.6462,158.9,158.85,1.57536395]
[1724563292446,15.6462,158.9,158.85,11.31689583]
[1724563292761,1.57359453,158.89,158.85,11.31689583]
[1724563293349,15.6462,158.9,158.85,11.31689583]
[1724563293558,1.57359383,158.89,158.85,11.31689583]
[1724563294472,15.6462,158.9,158.85,11.31689583]
[1724563295779,15.6462,158.9,158.85,11.31682964]
[1724563295943,15.6462,158.9,158.85,9.74153188]
[1724563296143,15.6462,158.9,158.85,11.31682964]
[1724563296439,15.6462,158.9,158.85,11.31684909]
[1724563297453,15.6462,158.9,158.85,11.31684909]
[1724563298442,17.21972361,158.9,158.85,11.31684909]
[1724563299180,17.21972361,158.9,158.85,9.74153188]
[1724563299353,17.21972361,158.9,158.85,11.3168479]
[1724563299545,15.6462,158.9,158.85,11.3168479]
[1724563300368,15.6462,158.9,158.85,9.74153188]
[1724563301571,6.6182,158.91,158.87,9.74153188]
[1724563301753,15.7555,158.94,158.89,9.74153188]
[1724563302167,6.0923,158.96,158.89,9.74153188]
[1724563303572,6.0923,158.96,158.9,0.72231037]
[1724563303764,6.0923,158.96,158.9,20.72231037]
[1724563304677,6.0923,158.96,158.91,9.74153188]
[1724563304886,6.0923,158.96,158.91,10.46398162]
[1724563305676,6.0923,158.96,158.91,9.74153188]
[1724563308576,15.7555,158.98,158.91,9.74153188]
[1724563309858,1.57288801,158.97,158.91,9.74153188]
[1724563310275,17.32838697,158.98,158.91,9.74153188]
[1724563311777,17.32838697,158.98,158.9,20.0]
[1724563311984,17.32838697,158.98,158.9,9.74153188]
[1724563312157,17.32838697,158.98,158.91,20.0]
[1724563312485,1.57305491,158.97,158.91,20.0]
[1724563312858,15.7555,158.98,158.91,20.0]
[1724563313058,15.7555,158.98,158.91,20.72240755]
[1724563313274,15.7555,158.98,158.91,20.0]
[1724563314883,1.57297425,158.97,158.91,20.0]
[1724563315387,15.7555,158.98,158.91,20.0]
[1724563315681,15.7555,158.98,158.91,20.72241816]
[1724563316183,15.7555,158.98,158.92,9.74153188]
[1724563317566,1.57297339,158.97,158.92,9.74153188]
[1724563317986,15.7555,158.98,158.92,9.74153188]
[1724563318483,1.57297289,158.97,158.92,9.74153188]
[1724563319366,15.7555,158.98,158.92,9.74153188]
[1724563320360,1.57297151,158.97,158.92,9.74153188]
[1724563321700,15.7555,158.98,158.92,9.74153188]
[1724563322399,15.7555,158.98,158.94,9.74153188]
[1724563322601,6.0923,159.0,158.94,9.74153188]
[1724563322966,1.57276194,158.99,158.92,9.74153188]
[1724563323166,1.57282906,158.98,158.93,20.0]
[1724563324201,1.57284183,158.99,158.93,20.0]
[1724563325397,1.57284152,158.98,158.93,20.0]
[1724563325566,1.57284152,158.98,158.86,15.57]
[1724563325567,11.3143734,158.98,158.86,15.57]
[1724563325768,11.3143734,158.98,158.87,31.31618267]
[1724563325769,68.33807388,158.97,158.87,31.31618267]
[1724563325967,62.04757388,158.97,158.88,1.57465079]
[1724563326300,62.04757388,158.97,158.89,9.74153188]
[1724563326500,62.04757388,158.97,158.9,20.0]
[1724563326699,60.5677,158.97,158.9,20.0]
[1724563326868,60.5677,158.97,158.91,11.31622123]
[1724563327408,60.5677,158.97,158.91,9.74153188]
[1724563327691,15.5677,158.97,158.91,12.03881795]
[1724563327908,6.0923,159.0,158.93,9.74153188]
[1724563328080,45.0,158.99,158.93,9.74153188]
[1724563328280,6.0923,159.0,158.93,9.74153188]
[1724563329717,6.0923,159.0,158.93,11.3162207]
[1724563330309,6.0923,159.0,158.93,9.74153188]
[1724563331385,6.0923,159.0,158.94,1.57462041]
[1724563331591,6.0923,159.0,158.93,9.74153188]
[1724563331892,6.0923,159.0,158.94,1.57462026]
[1724563332195,6.0923,159.0,158.93,9.74153188]
[1724563332512,6.0923,159.0,158.94,1.57462026]
[1724563332716,15.5677,159.01,158.95,11.31609786]
[1724563332898,15.5677,159.01,158.95,9.74153188]
[1724563333421,6.3897,159.04,158.96,1.57432289]
[1724563333590,1.57249026,159.03,158.97,1.57432289]
[1724563333799,1.57249026,159.03,158.98,1.57432289]
[1724563333998,1.57249026,159.03,158.95,9.74153188]
[1724563334204,1.57249026,159.03,158.96,21.57427306]
[1724563334516,6.3897,159.04,158.96,20.0]
[1724563334720,46.57249496,159.03,158.97,1.57423513]
[1724563335021,46.57249496,159.03,158.98,1.57423513]
[1724563335224,46.57249496,159.03,158.96,20.0]
[1724563335396,46.57249496,159.03,158.97,1.57423365]
[1724563335597,46.57249496,159.03,158.98,1.57423365]
[1724563335819,46.57249496,159.03,158.96,20.0]
[1724563336016,1.57249496,159.03,158.97,1.57423394]
[1724563336198,1.57249496,159.03,158.98,1.57423394]
[1724563336402,1.57249496,159.03,158.97,9.74153188]
[1724563336717,15.5677,159.05,158.98,1.5742338]
[1724563337025,15.5677,159.05,158.99,11.31573008]
[1724563337198,15.5677,159.05,158.99,9.74153188]
[1724563339594,1.57237061,159.04,158.97,9.74153188]
[1724563339812,56.31390249,159.04,158.98,1.57420896]
[1724563340112,56.31390249,159.04,158.96,36.4672]
[1724563340316,56.31390249,159.04,158.97,1.57423968]
[1724563340496,56.31390249,159.04,158.98,1.57423968]
[1724563340698,56.31390249,159.04,158.96,36.4672]
[1724563341922,45.0,159.04,158.96,36.4672]
[1724563344619,1.48021571,159.03,158.96,36.4672]
[1724563345332,1.48021571,159.03,158.96,20.0]
[1724563345701,61.02933188,159.04,158.96,20.0]
[1724563345904,61.02933188,159.04,158.96,18.999999]
[1724563350502,61.02933188,159.04,158.96,9.74153188]
[1724563350808,61.02933188,159.04,158.97,20.0]
[1724563351196,51.2878,159.04,158.97,20.0]
[1724563354403,45.0,159.04,158.97,20.0]
[1724563354617,45.0,159.04,158.96,9.74153188]
[1724563354955,45.0,159.04,158.97,20.0]
[1724563356001,1.57252296,159.03,158.97,20.0]
[1724563356201,1.57252296,159.03,158.96,9.74153188]
[1724563356410,1.57252296,159.03,158.97,20.0]
[1724563356827,45.0,159.04,158.97,20.0]
[1724563361424,1.57238535,159.03,158.97,20.0]
[1724563368229,45.0,159.04,158.97,20.0]
[1724563368631,21.8551,159.05,158.97,20.0]
[1724563370435,21.8551,159.05,158.98,4.3313012]
[1724563371148,21.8551,159.05,158.98,14.07283308]
[1724563372468,1.57226217,159.04,158.98,9.74153188]
[1724563372745,17.04815323,159.05,158.98,9.74153188]
[1724563374136,15.5677,159.05,158.98,9.74153188]
[1724563374431,15.5677,159.05,158.99,4.33121517]
[1724563374749,15.5677,159.05,158.98,9.74153188]
[1724563374933,15.5677,159.05,158.99,4.33065567]
[1724563375132,15.89253188,159.08,159.0,14.07089457]
[1724563375133,6.151,159.08,159.0,14.07089457]
[1724563375331,6.151,159.08,159.01,4.32936269]
[1724563375531,6.151,159.08,159.02,4.32936269]
[1724563375748,6.151,159.08,159.0,9.74153188]
[1724563375943,6.151,159.08,159.01,5.04819283]
[1724563376149,1.48077194,159.07,159.01,4.32824393]
[1724563376334,1.48077194,159.07,159.02,4.32824393]
[1724563376532,1.57195233,159.07,159.02,4.32824393]
[1724563376730,6.151,159.08,159.02,4.32824393]
[1724563376937,7.7229292,159.08,159.03,4.32824393]
[1724563377133,7.7229292,159.08,159.02,9.74153188]
[1724563377341,7.7229292,159.08,159.03,4.327371]
[1724563377547,7.7229292,159.08,159.02,9.74153188]
[1724563377930,7.7229292,159.08,159.03,4.32738787]
[1724563378144,7.7229292,159.08,159.02,9.74153188]
[1724563378344,6.151,159.08,159.03,4.32711473]
[1724563378532,7.72290458,159.08,159.03,4.32711473]
[1724563378741,6.151,159.08,159.03,4.32711473]
[1724563379053,6.151,159.08,159.02,9.74153188]
[1724563379229,18.16935797,159.09,159.03,4.32710444]
[1724563381464,18.16935797,159.09,159.03,4.3269652]
[1724563381757,18.16935797,159.09,159.02,9.74153188]
[1724563381758,18.16935797,159.09,159.02,14.06849708]
[1724563384760,18.16935797,159.09,159.02,9.74153188]
[1724563384981,18.16935797,159.09,159.02,14.06769268]
[1724563385262,24.45505797,159.09,159.02,9.74153188]
[1724563386448,18.16935797,159.09,159.02,9.74153188]
[1724563386949,18.16935797,159.09,159.02,14.06732929]
[1724563387159,16.5975,159.09,159.02,14.06732929]
[1724563387342,16.5975,159.09,159.02,9.74153188]
[1724563387529,22.8833,159.09,159.02,9.74153188]
[1724563388532,1.57193067,159.08,159.01,20.0]
[1724563388733,22.8833,159.09,159.02,29.74153188]
[1724563389026,22.8833,159.09,159.02,9.74153188]
[1724563390050,1.57197912,159.08,159.0,4.32693411]
[1724563390250,16.5975,159.09,159.01,9.74153188]
[1724563390553,16.5975,159.09,159.02,20.0]
[1724563391058,16.5975,159.09,159.03,9.74153188]
[1724563391560,16.5975,159.09,159.03,10.46129601]
[1724563391764,16.5975,159.09,159.03,9.74153188]
[1724563392260,16.5975,159.09,159.03,10.46129514]
[1724563392484,6.4174,159.12,159.05,9.74153188]
[1724563392755,6.4174,159.12,159.07,9.74153188]
[1724563393539,6.4174,159.12,159.06,9.74153188]
[1724563394241,1.57143475,159.11,159.04,4.32311151]
[1724563394540,1.57143475,159.11,159.05,9.74153188]
[1724563394740,6.4174,159.12,159.05,9.74153188]
[1724563394949,1.57157351,159.11,159.05,9.74153188]